[Event "NJSK 2024 C"]
[Site "Groningen, Netherlands"]
[Date "2024.04.28"]
[Round "2.4"]
[White "Groenewoud, Joel"]
[Black "Koppenens, Oscar"]
[Result "1-0"]
[TimeControl "90min/40moves + 30min + 30sec/move"]
[WhiteElo "2030"]
[BlackElo "1893"]

1. e4 {[%clk 01:30:57]} {[%emt 00:00:02]} c5 {[%clk 01:30:51]} {[%emt
00:00:10]} 2. Nf3 {[%clk 01:31:21]} {[%emt 00:00:05]} d6 {[%clk 01:31:18]}
{[%emt 00:00:04]} 3. d4 {[%clk 01:31:46]} {[%emt 00:00:04]} cxd4 {[%clk
01:31:39]} {[%emt 00:00:09]} 4. Nxd4 {[%clk 01:32:12]} {[%emt 00:00:04]} Nf6
{[%clk 01:32:05]} {[%emt 00:00:05]} 5. Nc3 {[%clk 01:32:36]} {[%emt 00:00:05]}
e5 {[%clk 01:32:12]} {[%emt 00:00:24]} 6. Bb5+ {[%clk 01:31:05]} {[%emt
00:02:01]} Nbd7 {[%clk 01:32:35]} {[%emt 00:00:08]} 7. Nf5 {[%clk 01:30:57]}
{[%emt 00:00:37]} d5 {[%clk 01:28:27]} {[%emt 00:04:38]} 8. exd5 {[%clk
01:22:17]} {[%emt 00:09:09]} a6 {[%clk 01:27:59]} {[%emt 00:00:59]} 9. Bxd7+
{[%clk 01:18:18]} {[%emt 00:04:28]} Qxd7 {[%clk 01:27:20]} {[%emt 00:01:10]} 10.
Ne3 {[%clk 01:16:04]} {[%emt 00:02:43]} b5 {[%clk 01:26:23]} {[%emt 00:01:27]}
11. a4 {[%clk 01:08:13]} {[%emt 00:08:21]} b4 {[%clk 01:25:12]} {[%emt
00:01:41]} 12. Ne2 {[%clk 01:08:13]} {[%emt 00:00:29]} Bb7 {[%clk 01:24:38]}
{[%emt 00:01:06]} 13. c4 {[%clk 01:08:17]} {[%emt 00:00:25]} bxc3 {[%clk
01:24:55]} {[%emt 00:00:14]} 14. Nxc3 {[%clk 01:08:37]} {[%emt 00:00:10]} Rd8
{[%clk 01:24:03]} {[%emt 00:01:21]} 15. Qe2 {[%clk 01:05:27]} {[%emt 00:03:40]}
Bb4 {[%clk 01:23:09]} {[%emt 00:01:24]} 16. O-O {[%clk 00:58:44]} {[%emt
00:07:14]} Bxc3 {[%clk 01:22:04]} {[%emt 00:01:35]} 17. bxc3 {[%clk 00:59:07]}
{[%emt 00:00:06]} Nxd5 {[%clk 01:22:20]} {[%emt 00:00:15]} 18. Ba3 {[%clk
00:56:29]} {[%emt 00:03:08]} Nf4 {[%clk 01:21:14]} {[%emt 00:01:36]} 19. Qc4
{[%clk 00:51:52]} {[%emt 00:05:06]} Nxg2 {[%clk 01:07:39]} {[%emt 00:14:05]} 20.
Nxg2 {[%clk 00:48:16]} {[%emt 00:04:06]} Qh3 {[%clk 01:07:59]} {[%emt
00:00:10]} 21. f3 {[%clk 00:24:32]} {[%emt 00:24:15]} Rd2 {[%clk 01:07:40]}
{[%emt 00:00:47]} 22. Rf2 {[%clk 00:24:59]} {[%emt 00:00:04]} Rxf2 {[%clk
01:08:04]} {[%emt 00:00:06]} 23. Kxf2 {[%clk 00:25:19]} {[%emt 00:00:10]} Qxf3+
{[%clk 01:08:29]} {[%emt 00:00:06]} 24. Ke1 {[%clk 00:25:32]} {[%emt 00:00:16]}
Qxg2 {[%clk 01:08:49]} {[%emt 00:00:10]} 25. Qc7 {[%clk 00:23:51]} {[%emt
00:02:10]} Qe4+ {[%clk 01:09:10]} {[%emt 00:00:10]} 26. Kd2 {[%clk 00:23:21]}
{[%emt 00:01:00]} Qd5+ {[%clk 01:09:02]} {[%emt 00:00:36]} 27. Kc2 {[%clk
00:23:03]} {[%emt 00:00:49]} Qd7 {[%clk 01:08:35]} {[%emt 00:00:56]} 28. Qxe5+
{[%clk 00:21:42]} {[%emt 00:01:53]} Qe6 {[%clk 01:08:52]} {[%emt 00:00:13]} 29.
Qb8+ {[%clk 00:22:00]} {[%emt 00:00:12]} Bc8 {[%clk 01:08:49]} {[%emt
00:00:34]} 30. Re1 {[%clk 00:22:17]} {[%emt 00:00:12]} Kd7 {[%clk 01:07:17]}
{[%emt 00:02:01]} 31. Rxe6 {[%clk 00:21:59]} {[%emt 00:00:49]} Kxe6 {[%clk
01:07:45]} {[%emt 00:00:02]} 32. Qd6+ {[%emt 00:00:26]} Kf5 {[%clk 01:08:09]}
33. Qd5+ {[%clk 00:22:03]} {[%emt 00:00:36]} Kg6 {[%clk 01:08:34]} {[%emt
00:00:05]} 34. Qg2+ {[%clk 00:22:06]} {[%emt 00:00:26]} Kf6 {[%clk 01:08:20]}
{[%emt 00:00:44]} 35. c4 {[%emt 00:00:16]} Bf5+ {[%clk 01:08:47]} 36. Kc1
{[%emt 00:00:36]} Rc8 {[%clk 01:08:50]} 37. c5 {[%clk 00:22:41]} {[%emt
00:00:34]} g5 {[%clk 01:08:14]} {[%emt 00:01:04]} 38. Qd5 {[%clk 00:22:43]}
{[%emt 00:00:28]} Be6 {[%clk 01:08:22]} {[%emt 00:00:24]} 39. Qd6 {[%clk
00:22:53]} {[%emt 00:00:20]} Kg7 {[%clk 01:08:35]} {[%emt 00:00:17]} 40. Bb2+
{[%clk 00:23:09]} {[%emt 00:00:14]} Kg8 {[%clk 01:08:39]} {[%emt 00:00:25]} 41.
c6 {[%clk 00:23:07]} {[%emt 00:00:32]} Bb3 {[%clk 01:08:26]} {[%emt 00:00:42]}
42. c7 {[%clk 00:23:25]} {[%emt 00:00:14]} Be6 {[%clk 01:08:32]} {[%emt
00:00:24]} 43. Qd8+ {[%clk 00:23:47]} {[%emt 00:00:07]} Rxd8 {[%clk 01:08:56]}
{[%emt 00:00:06]} 44. cxd8=Q# {[%clk 00:24:07]} {[%emt 00:00:10]} 1-0

[Event "NJSK 2024 C"]
[Site "Groningen, Netherlands"]
[Date "2024.04.28"]
[Round "2.5"]
[White "Klein Tuente, Sam"]
[Black "Grooten, Tommy"]
[Result "0-1"]
[TimeControl "90min/40moves + 30min + 30sec/move"]
[WhiteElo "1732"]
[BlackElo "2018"]

1. e4 {[%clk 01:30:57]} {[%emt 00:00:02]} c5 {[%clk 01:30:55]} {[%emt
00:00:05]} 2. Nf3 {[%clk 01:31:19]} {[%emt 00:00:08]} e6 {[%clk 01:31:20]}
{[%emt 00:00:05]} 3. c3 {[%clk 01:31:31]} {[%emt 00:00:19]} Nf6 {[%clk
01:31:22]} {[%emt 00:00:28]} 4. e5 {[%clk 01:31:40]} {[%emt 00:00:20]} Nd5
{[%clk 01:31:47]} {[%emt 00:00:05]} 5. d4 {[%clk 01:31:34]} {[%emt 00:00:36]}
cxd4 {[%clk 01:32:13]} {[%emt 00:00:05]} 6. cxd4 {[%clk 01:31:55]} {[%emt
00:00:09]} d6 {[%clk 01:32:37]} {[%emt 00:00:06]} 7. Bb5+ {[%clk 01:25:53]}
{[%emt 00:06:32]} Bd7 {[%clk 01:31:08]} {[%emt 00:01:58]} 8. Bxd7+ {[%clk
01:26:10]} {[%emt 00:00:14]} Nxd7 {[%clk 01:31:22]} {[%emt 00:00:14]} 9. O-O
{[%clk 01:26:05]} {[%emt 00:00:37]} Qc7 {[%clk 01:31:02]} {[%emt 00:00:50]} 10.
exd6 {[%clk 01:23:25]} {[%emt 00:03:09]} Bxd6 {[%clk 01:31:17]} {[%emt
00:00:12]} 11. Bd2 {[%clk 01:21:01]} {[%emt 00:02:57]} O-O {[%clk 01:28:10]}
{[%emt 00:03:33]} 12. Nc3 {[%clk 01:21:07]} {[%emt 00:00:29]} Nxc3 {[%clk
01:28:30]} {[%emt 00:00:10]} 13. Bxc3 {[%clk 01:18:17]} {[%emt 00:03:19]} Nf6
{[%clk 01:27:20]} {[%emt 00:01:40]} 14. Rc1 {[%clk 01:12:48]} {[%emt 00:05:59]}
Qb6 {[%clk 01:24:57]} {[%emt 00:02:53]} 15. Ne5 {[%clk 01:04:06]} {[%emt
00:09:13]} Rfd8 {[%clk 01:20:48]} {[%emt 00:04:39]} 16. Qe2 {[%clk 00:36:35]}
{[%emt 00:28:00]} Rac8 {[%clk 01:15:22]} {[%emt 00:05:57]} 17. Kh1 {[%clk
00:32:46]} {[%emt 00:04:18]} Bxe5 {[%clk 01:09:27]} {[%emt 00:06:25]} 18. dxe5
{[%clk 00:30:54]} {[%emt 00:02:22]} Nd5 {[%clk 01:09:50]} {[%emt 00:00:08]} 19.
f4 {[%clk 00:30:05]} {[%emt 00:01:19]} g6 {[%clk 01:03:41]} {[%emt 00:06:39]}
20. Rf3 {[%clk 00:28:52]} {[%emt 00:01:42]} Nxc3 {[%clk 01:02:34]} {[%emt
00:01:37]} 21. bxc3 {[%clk 00:27:20]} {[%emt 00:02:02]} Rd5 {[%clk 01:00:01]}
{[%emt 00:03:03]} 22. Rd1 {[%emt 00:12:16]} Qb2 {[%clk 00:57:16]} 23. Qe1
{[%clk 00:18:18]} {[%emt 00:01:01]} Rcd8 {[%clk 00:57:36]} {[%emt 00:00:12]} 24.
Rxd5 {[%clk 00:18:16]} {[%emt 00:00:31]} Rxd5 {[%clk 00:57:59]} {[%emt
00:00:07]} 25. Rf2 {[%clk 00:17:08]} {[%emt 00:01:37]} Qxc3 {[%clk 00:56:55]}
{[%emt 00:01:34]} 26. Qe2 {[%clk 00:17:09]} {[%emt 00:00:29]} Qb2 {[%clk
00:54:33]} {[%emt 00:02:52]} 27. g3 {[%clk 00:17:04]} {[%emt 00:00:35]} Qxe2
{[%clk 00:50:58]} {[%emt 00:04:06]} 28. Rxe2 {[%clk 00:17:31]} {[%emt
00:00:03]} h6 {[%clk 00:50:33]} {[%emt 00:00:54]} 29. Kg2 {[%clk 00:17:01]}
{[%emt 00:01:00]} Kg7 {[%clk 00:50:03]} {[%emt 00:01:01]} 30. Kf3 {[%clk
00:17:04]} {[%emt 00:00:26]} a5 {[%clk 00:48:52]} {[%emt 00:01:41]} 31. a4
{[%clk 00:16:12]} {[%emt 00:01:23]} Rd3+ {[%clk 00:48:54]} {[%emt 00:00:27]} 32.
Kg4 {[%clk 00:14:48]} {[%emt 00:01:54]} Rd4 {[%clk 00:46:15]} {[%emt 00:03:10]}
33. Ra2 {[%clk 00:12:24]} {[%emt 00:02:53]} g5 {[%clk 00:46:34]} {[%emt
00:00:12]} 34. Ra3 {[%clk 00:12:07]} {[%emt 00:00:47]} Kg6 {[%clk 00:46:40]}
{[%emt 00:00:24]} 35. h4 {[%clk 00:10:46]} {[%emt 00:01:50]} h5+ {[%clk
00:46:47]} {[%emt 00:00:23]} 36. Kh3 {[%clk 00:11:01]} {[%emt 00:00:15]} gxf4
{[%clk 00:45:19]} {[%emt 00:01:57]} 37. g4 {[%clk 00:11:18]} {[%emt 00:00:13]}
Re4 {[%clk 00:45:25]} {[%emt 00:00:25]} 38. Rb3 {[%clk 00:10:17]} {[%emt
00:01:31]} Re3+ {[%clk 00:45:46]} {[%emt 00:00:09]} 39. Rxe3 {[%clk 00:10:42]}
{[%emt 00:00:05]} fxe3 {[%clk 00:46:11]} {[%emt 00:00:06]} 0-1

[Event "NJSK 2024 C"]
[Site "Groningen, Netherlands"]
[Date "2024.04.28"]
[Round "2.6"]
[White "Chua, Ethan"]
[Black "Ngangbam, Chingthang"]
[Result "1-0"]
[TimeControl "90min/40moves + 30min + 30sec/move"]
[WhiteElo "2000"]
[BlackElo "1713"]

1. e4 {[%clk 01:30:50]} {[%emt 00:00:09]} c5 {[%clk 01:30:35]} {[%emt
00:00:25]} 2. Nf3 {[%clk 01:31:17]} {[%emt 00:00:04]} d6 {[%clk 01:30:35]}
{[%emt 00:00:30]} 3. d4 {[%clk 01:31:44]} {[%emt 00:00:03]} cxd4 {[%clk
01:30:34]} {[%emt 00:00:31]} 4. Nxd4 {[%clk 01:32:09]} {[%emt 00:00:05]} Nf6
{[%clk 01:30:51]} {[%emt 00:00:13]} 5. Nc3 {[%clk 01:32:36]} {[%emt 00:00:03]}
g6 {[%clk 01:28:48]} {[%emt 00:02:33]} 6. Be3 {[%clk 01:32:57]} {[%emt
00:00:09]} Bg7 {[%clk 01:29:06]} {[%emt 00:00:11]} 7. f3 {[%clk 01:33:22]}
{[%emt 00:00:06]} Nc6 {[%clk 01:29:07]} {[%emt 00:00:29]} 8. Qd2 {[%clk
01:33:34]} {[%emt 00:00:18]} O-O {[%clk 01:29:11]} {[%emt 00:00:26]} 9. g4
{[%clk 01:33:58]} {[%emt 00:00:06]} a6 {[%clk 01:21:48]} {[%emt 00:07:54]} 10.
h4 {[%clk 01:29:02]} {[%emt 00:05:25]} Nxd4 {[%clk 01:18:04]} {[%emt 00:04:12]}
11. Bxd4 {[%clk 01:28:22]} {[%emt 00:01:12]} b5 {[%clk 01:17:45]} {[%emt
00:00:48]} 12. h5 {[%clk 01:26:57]} {[%emt 00:01:56]} b4 {[%clk 01:17:24]}
{[%emt 00:00:51]} 13. Nd5 {[%clk 01:27:01]} {[%emt 00:00:27]} Be6 {[%clk
01:13:16]} {[%emt 00:04:37]} 14. hxg6 {[%clk 01:18:43]} {[%emt 00:08:47]} fxg6
{[%clk 00:58:29]} {[%emt 00:15:17]} 15. Nf4 {[%clk 01:16:26]} {[%emt 00:02:48]}
Bf7 {[%clk 00:38:03]} {[%emt 00:20:55]} 16. Nh3 {[%clk 01:06:30]} {[%emt
00:10:26]} e5 {[%clk 00:26:08]} {[%emt 00:12:27]} 17. Be3 {[%clk 01:04:37]}
{[%emt 00:02:22]} d5 {[%clk 00:23:39]} {[%emt 00:02:59]} 18. Bc5 {[%clk
01:03:05]} {[%emt 00:02:01]} Re8 {[%clk 00:22:21]} {[%emt 00:01:48]} 19. Ng5
{[%clk 01:02:06]} {[%emt 00:01:30]} Qc7 {[%clk 00:15:53]} {[%emt 00:06:58]} 20.
Bxb4 {[%clk 00:59:02]} {[%emt 00:03:34]} dxe4 {[%clk 00:14:02]} {[%emt
00:02:21]} 21. Ba5 {[%clk 00:58:25]} {[%emt 00:01:06]} Qb7 {[%clk 00:12:45]}
{[%emt 00:01:48]} 22. Nxf7 {[%clk 00:51:42]} {[%emt 00:07:13]} Qxf7 {[%clk
00:13:07]} {[%emt 00:00:07]} 23. b3 {[%clk 00:50:18]} {[%emt 00:01:54]} Qb7
{[%clk 00:12:52]} {[%emt 00:00:45]} 24. Bc4+ {[%clk 00:50:05]} {[%emt
00:00:43]} Kh8 {[%clk 00:13:18]} {[%emt 00:00:04]} 25. g5 {[%clk 00:50:07]}
{[%emt 00:00:28]} Nh5 {[%clk 00:13:11]} {[%emt 00:00:37]} 26. Bd5 {[%clk
00:50:16]} {[%emt 00:00:21]} Qb5 {[%clk 00:11:04]} {[%emt 00:02:38]} 27. c4
{[%clk 00:48:15]} {[%emt 00:02:31]} Qc5 {[%clk 00:10:37]} {[%emt 00:00:57]} 28.
fxe4 {[%clk 00:45:33]} {[%emt 00:03:12]} Rab8 {[%clk 00:10:14]} {[%emt
00:00:52]} 29. O-O-O {[%clk 00:45:08]} {[%emt 00:00:55]} Nf4 {[%clk 00:09:01]}
{[%emt 00:01:43]} 30. Kb1 {[%clk 00:39:32]} {[%emt 00:06:07]} Rec8 {[%clk
00:07:11]} {[%emt 00:02:20]} 31. Bc3 {[%clk 00:38:24]} {[%emt 00:01:37]} Rd8
{[%clk 00:06:15]} {[%emt 00:01:25]} 32. Qh2 {[%clk 00:37:03]} {[%emt 00:01:51]}
Nh5 {[%clk 00:05:22]} {[%emt 00:01:23]} 33. Bxe5 {[%clk 00:35:52]} {[%emt
00:01:42]} Rb6 {[%clk 00:01:15]} {[%emt 00:04:37]} 34. Bxg7+ {[%clk 00:35:57]}
{[%emt 00:00:25]} Kxg7 {[%clk 00:01:33]} {[%emt 00:00:11]} 35. Qe5+ {[%clk
00:36:20]} {[%emt 00:00:07]} 1-0

[Event "NJSK 2024 C"]
[Site "Groningen, Netherlands"]
[Date "2024.04.28"]
[Round "2.7"]
[White "Tetova, Amir"]
[Black "De Jong, Lode"]
[Result "0-1"]
[TimeControl "90min/40moves + 30min + 30sec/move"]
[WhiteElo "1767"]
[BlackElo "1587"]

1. d4 {[%clk 01:30:59]} Nf6 {[%clk 01:30:57]} {[%emt 00:00:04]} 2. Bf4 {[%clk
01:31:25]} {[%emt 00:00:04]} g6 {[%clk 01:31:23]} {[%emt 00:00:04]} 3. e3
{[%clk 01:31:50]} {[%emt 00:00:04]} Bg7 {[%clk 01:31:51]} {[%emt 00:00:03]} 4.
Nf3 {[%clk 01:32:13]} {[%emt 00:00:07]} O-O {[%clk 01:32:17]} {[%emt 00:00:04]}
5. Be2 {[%clk 01:32:39]} {[%emt 00:00:05]} d6 {[%clk 01:32:43]} {[%emt
00:00:03]} 6. h3 {[%clk 01:33:05]} {[%emt 00:00:03]} Nbd7 {[%clk 01:32:43]}
{[%emt 00:00:31]} 7. O-O {[%clk 01:33:23]} {[%emt 00:00:11]} b6 {[%clk
01:32:38]} {[%emt 00:00:35]} 8. c4 {[%clk 01:33:48]} {[%emt 00:00:06]} Bb7
{[%clk 01:33:04]} {[%emt 00:00:05]} 9. Nc3 {[%clk 01:34:01]} {[%emt 00:00:16]}
Ne4 {[%clk 01:33:09]} {[%emt 00:00:24]} 10. a4 {[%clk 01:32:06]} {[%emt
00:02:26]} e5 {[%clk 01:31:11]} {[%emt 00:02:28]} 11. Bh2 {[%clk 01:27:27]}
{[%emt 00:05:09]} Nxc3 {[%clk 01:28:11]} {[%emt 00:03:29]} 12. bxc3 {[%clk
01:27:47]} {[%emt 00:00:10]} a5 {[%clk 01:28:35]} {[%emt 00:00:06]} 13. Rb1
{[%clk 01:26:44]} {[%emt 00:01:34]} Qe7 {[%clk 01:25:06]} {[%emt 00:03:59]} 14.
d5 {[%clk 01:25:35]} {[%emt 00:01:38]} Nc5 {[%clk 01:23:30]} {[%emt 00:02:06]}
15. Qc2 {[%clk 01:20:29]} {[%emt 00:05:36]} Bc8 {[%clk 01:22:32]} {[%emt
00:01:29]} 16. Ra1 {[%clk 01:14:43]} {[%emt 00:06:17]} Bf5 {[%clk 01:21:02]}
{[%emt 00:01:59]} 17. Qd1 {[%clk 01:04:41]} {[%emt 00:10:32]} Qe8 {[%clk
01:19:32]} {[%emt 00:02:00]} 18. Ra3 {[%clk 00:40:33]} {[%emt 00:24:38]} Bd7
{[%clk 01:18:38]} {[%emt 00:01:25]} 19. Nd2 {[%clk 00:35:23]} {[%emt 00:05:40]}
Bxa4 {[%clk 01:10:41]} {[%emt 00:08:27]} 20. Qb1 {[%clk 00:34:12]} {[%emt
00:01:40]} f5 {[%clk 01:03:50]} {[%emt 00:07:21]} 21. Bd1 {[%clk 00:29:09]}
{[%emt 00:05:34]} Bd7 {[%clk 00:57:03]} {[%emt 00:07:15]} 22. f3 {[%clk
00:23:04]} {[%emt 00:06:36]} Qe7 {[%clk 00:53:27]} {[%emt 00:04:06]} 23. Bg3
{[%clk 00:16:08]} {[%emt 00:07:26]} Qg5 {[%clk 00:45:23]} {[%emt 00:08:35]} 24.
Bf2 {[%clk 00:16:20]} {[%emt 00:00:18]} f4 {[%clk 00:44:47]} {[%emt 00:01:05]}
25. h4 {[%clk 00:15:30]} {[%emt 00:01:20]} Qh6 {[%clk 00:35:56]} {[%emt
00:09:21]} 26. exf4 {[%clk 00:10:29]} {[%emt 00:05:32]} exf4 {[%clk 00:35:45]}
{[%emt 00:00:40]} 27. Ne4 {[%clk 00:10:06]} {[%emt 00:00:54]} Nxe4 {[%clk
00:33:44]} {[%emt 00:02:30]} 28. fxe4 {[%clk 00:08:26]} {[%emt 00:02:10]} Bf6
{[%clk 00:32:07]} {[%emt 00:02:07]} 29. Bf3 {[%clk 00:01:05]} {[%emt 00:07:52]}
Bxh4 {[%clk 00:31:55]} {[%emt 00:00:41]} 30. Qd1 {[%clk 00:00:40]} {[%emt
00:00:55]} Bg3 {[%clk 00:30:42]} {[%emt 00:01:42]} 31. Bxg3 {[%clk 00:00:51]}
{[%emt 00:00:20]} fxg3 {[%clk 00:30:58]} {[%emt 00:00:14]} 32. Re1 {[%clk
00:01:18]} {[%emt 00:00:03]} Qh2+ {[%clk 00:31:08]} {[%emt 00:00:20]} 33. Kf1
{[%clk 00:01:46]} {[%emt 00:00:03]} Rxf3+ {[%clk 00:31:13]} {[%emt 00:00:24]}
34. Qxf3 {[%clk 00:01:30]} {[%emt 00:00:46]} Rf8 {[%clk 00:31:37]} {[%emt
00:00:07]} 35. Qxf8+ {[%clk 00:01:40]} {[%emt 00:00:20]} Kxf8 {[%clk 00:32:00]}
{[%emt 00:00:06]} 36. Raa1 {[%clk 00:01:38]} {[%emt 00:00:32]} Bg4 {[%clk
00:31:41]} {[%emt 00:00:18]} 0-1

[Event "NJSK 2024 C"]
[Site "Groningen, Netherlands"]
[Date "2024.04.28"]
[Round "2.8"]
[White "Ambrona Navarro, Himar"]
[Black "Zecha, Oscar"]
[Result "1-0"]
[TimeControl "90min/40moves + 30min + 30sec/move"]
[WhiteElo "1963"]
[BlackElo "1998"]

1. d4 {[%clk 01:30:52]} {[%emt 00:00:06]} Nf6 {[%clk 01:30:56]} {[%emt
00:00:05]} 2. c4 {[%clk 01:30:59]} {[%emt 00:00:16]} e6 {[%clk 01:31:23]}
{[%emt 00:00:10]} 3. Nc3 {[%clk 01:31:15]} {[%emt 00:00:14]} Bb4 {[%clk
01:31:49]} {[%emt 00:00:04]} 4. e3 {[%clk 01:31:30]} {[%emt 00:00:15]} O-O
{[%clk 01:32:12]} {[%emt 00:00:07]} 5. a3 {[%clk 01:31:52]} {[%emt 00:00:08]}
Bxc3+ {[%clk 01:31:51]} {[%emt 00:00:51]} 6. bxc3 {[%clk 01:32:10]} {[%emt
00:00:12]} c5 {[%clk 01:32:00]} {[%emt 00:00:21]} 7. Bd3 {[%clk 01:32:06]}
{[%emt 00:00:33]} d5 {[%clk 01:28:40]} {[%emt 00:03:51]} 8. cxd5 {[%clk
01:31:53]} {[%emt 00:00:43]} exd5 {[%clk 01:29:02]} {[%emt 00:00:08]} 9. Ne2
{[%clk 01:31:23]} {[%emt 00:00:59]} c4 {[%clk 01:28:36]} {[%emt 00:00:57]} 10.
Bc2 {[%clk 01:30:39]} {[%emt 00:01:13]} Re8 {[%clk 01:24:37]} {[%emt 00:04:30]}
11. f3 {[%clk 01:28:42]} {[%emt 00:02:26]} Nc6 {[%clk 01:20:51]} {[%emt
00:04:17]} 12. Ng3 {[%clk 01:27:00]} {[%emt 00:02:10]} h5 {[%clk 01:12:27]}
{[%emt 00:08:56]} 13. O-O {[%clk 01:19:05]} {[%emt 00:08:24]} h4 {[%clk
00:57:46]} {[%emt 00:15:12]} 14. Nf5 {[%clk 01:13:46]} {[%emt 00:05:46]} Ne7
{[%clk 00:45:52]} {[%emt 00:12:26]} 15. Nxe7+ {[%clk 01:08:49]} {[%emt
00:05:27]} Qxe7 {[%clk 00:46:18]} {[%emt 00:00:05]} 16. Re1 {[%clk 01:04:04]}
{[%emt 00:05:13]} Qc7 {[%clk 00:43:07]} {[%emt 00:03:43]} 17. e4 {[%clk
00:59:54]} {[%emt 00:04:38]} dxe4 {[%clk 00:36:04]} {[%emt 00:07:35]} 18. fxe4
{[%clk 00:59:03]} {[%emt 00:01:20]} h3 {[%clk 00:33:31]} {[%emt 00:03:05]} 19.
e5 {[%clk 00:56:06]} {[%emt 00:03:24]} Qc6 {[%clk 00:32:08]} {[%emt 00:01:55]}
20. Qf3 {[%clk 00:52:09]} {[%emt 00:04:23]} hxg2 {[%clk 00:28:17]} {[%emt
00:04:24]} 21. Qxc6 {[%clk 00:48:23]} {[%emt 00:04:17]} bxc6 {[%clk 00:28:46]}
{[%emt 00:00:02]} 22. Bd2 {[%clk 00:48:34]} {[%emt 00:00:17]} Nd5 {[%clk
00:25:54]} {[%emt 00:03:24]} 23. Kxg2 {[%clk 00:46:02]} {[%emt 00:03:00]} Bb7
{[%clk 00:23:06]} {[%emt 00:03:19]} 24. Rab1 {[%clk 00:44:57]} {[%emt
00:01:32]} Rab8 {[%clk 00:22:58]} {[%emt 00:00:41]} 25. Be4 {[%clk 00:38:18]}
{[%emt 00:07:06]} c5 {[%clk 00:19:11]} {[%emt 00:04:19]} 26. Kg1 {[%clk
00:35:53]} {[%emt 00:02:51]} Bc6 {[%clk 00:15:19]} {[%emt 00:04:27]} 27. Bxd5
{[%clk 00:24:59]} {[%emt 00:11:23]} Bxd5 {[%clk 00:15:22]} {[%emt 00:00:28]} 28.
Rxb8 {[%clk 00:22:54]} {[%emt 00:02:35]} Rxb8 {[%clk 00:15:25]} {[%emt
00:00:27]} 29. dxc5 {[%clk 00:22:46]} {[%emt 00:00:38]} Rb2 {[%clk 00:13:04]}
{[%emt 00:02:52]} 30. Bf4 {[%clk 00:22:30]} {[%emt 00:00:42]} g5 {[%clk
00:11:09]} {[%emt 00:02:28]} 31. Rd1 {[%clk 00:20:29]} {[%emt 00:02:27]} Bf3
{[%clk 00:10:54]} {[%emt 00:00:49]} 32. Rd2 {[%clk 00:20:09]} {[%emt 00:00:48]}
Rb5 {[%clk 00:07:31]} {[%emt 00:03:55]} 33. Bxg5 {[%clk 00:18:17]} {[%emt
00:02:20]} Rxc5 {[%clk 00:07:50]} {[%emt 00:00:12]} 34. Kf2 {[%clk 00:17:47]}
{[%emt 00:00:57]} Be4 {[%clk 00:05:25]} {[%emt 00:02:59]} 35. Bf6 {[%clk
00:17:57]} {[%emt 00:00:19]} Bd3 {[%clk 00:03:44]} {[%emt 00:02:11]} 36. Ke3
{[%clk 00:17:26]} {[%emt 00:01:00]} Ra5 {[%clk 00:03:33]} {[%emt 00:00:43]} 37.
Ra2 {[%clk 00:17:00]} {[%emt 00:00:53]} Kh7 {[%clk 00:02:42]} {[%emt 00:01:23]}
38. Kf4 {[%clk 00:15:58]} {[%emt 00:01:30]} Rb5 {[%clk 00:02:09]} {[%emt
00:01:06]} 39. Rg2 {[%clk 00:15:12]} {[%emt 00:01:12]} Bg6 {[%clk 00:01:33]}
{[%emt 00:01:09]} 40. Rg3 {[%clk 00:14:02]} {[%emt 00:01:37]} Kg8 {[%clk
00:01:22]} {[%emt 00:00:45]} 41. Rh3 {[%clk 00:12:30]} {[%emt 00:02:01]} Bh7
{[%clk 00:01:35]} {[%emt 00:00:18]} 42. Rg3+ {[%clk 00:11:19]} {[%emt
00:01:39]} Bg6 {[%clk 00:01:43]} {[%emt 00:00:24]} 43. h4 {[%clk 00:11:15]}
{[%emt 00:00:32]} Kf8 {[%clk 00:01:59]} {[%emt 00:00:15]} 44. h5 {[%clk
00:11:27]} {[%emt 00:00:19]} Bd3 {[%clk 00:00:56]} {[%emt 00:01:33]} 45. h6
{[%clk 00:11:29]} {[%emt 00:00:25]} Rb1 {[%clk 00:01:12]} {[%emt 00:00:16]} 46.
Rg2 {[%clk 00:06:59]} {[%emt 00:04:57]} Rd1 {[%clk 00:00:49]} {[%emt 00:00:57]}
47. Rb2 {[%clk 00:06:43]} {[%emt 00:00:42]} Rb1 {[%clk 00:01:14]} {[%emt
00:00:09]} 48. Rd2 {[%clk 00:05:55]} {[%emt 00:01:14]} Re1 {[%clk 00:01:15]}
{[%emt 00:00:33]} 49. Kf3 {[%clk 00:05:34]} {[%emt 00:00:47]} Kg8 {[%clk
00:01:19]} {[%emt 00:00:30]} 50. Rb2 {[%clk 00:04:56]} {[%emt 00:01:05]} Rb1
{[%clk 00:01:14]} {[%emt 00:00:38]} 51. Rxb1 {[%clk 00:05:08]} {[%emt
00:00:18]} Bxb1 {[%clk 00:01:42]} {[%emt 00:00:02]} 52. Ke3 {[%clk 00:05:33]}
{[%emt 00:00:05]} Bc2 {[%clk 00:00:37]} {[%emt 00:01:36]} 53. Kd4 {[%clk
00:05:11]} {[%emt 00:00:51]} Bb3 {[%clk 00:01:01]} {[%emt 00:00:05]} 54. Bd8
{[%clk 00:05:30]} {[%emt 00:00:10]} Kh7 {[%clk 00:01:27]} {[%emt 00:00:05]} 55.
Kc5 {[%clk 00:05:46]} {[%emt 00:00:13]} Kxh6 {[%clk 00:01:12]} {[%emt
00:00:47]} 56. Kb5 {[%clk 00:06:10]} {[%emt 00:00:04]} Kg6 {[%clk 00:01:25]}
{[%emt 00:00:19]} 57. Ka6 {[%clk 00:06:07]} {[%emt 00:00:32]} Kf5 {[%clk
00:01:53]} {[%emt 00:00:04]} 58. Bf6 {[%clk 00:06:29]} {[%emt 00:00:06]} Ke4
{[%clk 00:01:25]} {[%emt 00:00:59]} 59. Kxa7 {[%clk 00:06:43]} {[%emt
00:00:16]} Kd3 {[%clk 00:01:50]} {[%emt 00:00:05]} 60. Kb6 {[%clk 00:07:03]}
{[%emt 00:00:08]} Ba4 {[%clk 00:01:18]} {[%emt 00:01:04]} 61. Ka5 {[%clk
00:07:27]} {[%emt 00:00:04]} Bc6 {[%clk 00:01:36]} {[%emt 00:00:13]} 62. Kb4
{[%clk 00:07:47]} {[%emt 00:00:12]} Bd5 {[%clk 00:00:55]} {[%emt 00:01:11]} 63.
a4 {[%clk 00:08:05]} {[%emt 00:00:10]} Be4 {[%clk 00:00:46]} {[%emt 00:00:40]}
64. a5 {[%clk 00:08:23]} {[%emt 00:00:12]} Bb7 {[%clk 00:01:10]} {[%emt
00:00:07]} 65. Kb5 {[%clk 00:08:41]} {[%emt 00:00:11]} Bd5 {[%clk 00:01:29]}
{[%emt 00:00:11]} 66. a6 {[%clk 00:08:54]} {[%emt 00:00:16]} Be6 {[%clk
00:00:42]} {[%emt 00:01:18]} 67. a7 {[%clk 00:09:02]} {[%emt 00:00:20]} Bd5
{[%clk 00:01:09]} {[%emt 00:00:05]} 68. Kb6 {[%clk 00:09:28]} {[%emt 00:00:04]}
Kc2 {[%clk 00:00:31]} {[%emt 00:01:08]} 69. Kc7 {[%clk 00:09:49]} {[%emt
00:00:08]} Kb3 {[%clk 00:00:44]} {[%emt 00:00:18]} 70. Kb8 {[%clk 00:10:13]}
{[%emt 00:00:05]} Kxc3 {[%clk 00:01:07]} {[%emt 00:00:07]} 71. e6+ {[%clk
00:10:37]} {[%emt 00:00:06]} Kb3 {[%clk 00:00:52]} {[%emt 00:00:46]} 72. e7
{[%clk 00:11:01]} {[%emt 00:00:05]} 1-0